bitfinex-derivatives/quotes_BTCF0:USTF0_20250905
["timestamp","ask_amount","ask_price","bid_price","bid_amount"]
[1757034745776,0.61693106,110690.0,110680.0,1.21521]
[1757034746977,0.384,110690.0,110680.0,1.44814106]
[1757034747180,0.61693106,110690.0,110680.0,1.44814106]
[1757034749682,0.61693106,110690.0,110680.0,1.21521]
[1757034749977,1.09986212,110690.0,110680.0,0.86521]
[1757034750170,1.09986212,110690.0,110680.0,1.24521]
[1757034750373,0.61693106,110690.0,110680.0,1.24521]
[1757034750773,0.384,110690.0,110680.0,1.24521]
[1757034750977,0.61693106,110690.0,110680.0,1.24521]
[1757034752081,0.59773106,110690.0,110680.0,1.24521]
[1757034753585,0.84986212,110690.0,110680.0,1.21521]
[1757034753889,0.84986212,110690.0,110680.0,1.24521]
[1757034754087,0.61693106,110690.0,110680.0,1.24521]
[1757034754687,0.61693106,110690.0,110680.0,1.19521]
[1757034756286,0.384,110690.0,110680.0,1.19521]
[1757034756487,0.61693106,110690.0,110680.0,1.19521]
[1757034756685,0.61693106,110690.0,110680.0,0.86521]
[1757034756987,0.61693106,110690.0,110680.0,1.20517]
[1757034757179,0.84986212,110690.0,110680.0,0.37573]
[1757034757379,1.93430212,110690.0,110680.0,0.0001]
[1757034763088,1.10486212,110690.0,110680.0,0.0001]
[1757034763299,0.61693106,110690.0,110680.0,0.03573]
[1757034764186,0.61693106,110690.0,110680.0,0.51866106]
[1757034764488,0.61693106,110690.0,110680.0,0.28573]
[1757034771497,0.61686871,110690.0,110680.0,0.28573]
[1757034771695,0.61686871,110690.0,110680.0,0.03573]
[1757034772097,0.384,110690.0,110680.0,0.03573]
[1757034772297,0.61686871,110690.0,110680.0,0.03573]
[1757034772898,0.64281073,110690.0,110680.0,0.03573]
[1757034773994,0.61686871,110690.0,110680.0,0.03573]
[1757034775695,0.59766871,110690.0,110680.0,0.03573]
[1757034775902,0.61686871,110690.0,110680.0,0.03573]
[1757034777397,0.384,110690.0,110680.0,0.03573]
[1757034777701,0.61686871,110690.0,110680.0,0.03573]
[1757034779808,0.89290529,110690.0,110680.0,0.03573]
[1757034781306,0.64290529,110690.0,110680.0,0.03573]
[1757034782904,0.61686871,110690.0,110680.0,0.03573]
[1757034783708,1.44618871,110690.0,110680.0,0.03573]
[1757034788302,0.61686871,110690.0,110680.0,0.03573]
[1757034788899,0.384,110690.0,110680.0,0.03573]
[1757034789106,0.3648,110690.0,110680.0,0.51859871]
[1757034789497,0.3648,110690.0,110680.0,0.28573]
[1757034790103,0.004,110690.0,110680.0,2.08867871]
[1757034790511,0.25606871,110690.0,110680.0,0.04573]
[1757034790710,0.61686871,110690.0,110680.0,0.04573]
[1757034791004,0.384,110690.0,110680.0,0.04573]
[1757034791212,0.61686871,110690.0,110680.0,0.39573]
[1757034792107,0.25606871,110690.0,110680.0,0.39573]
[1757034792313,0.004,110690.0,110680.0,1.00653]
[1757034792514,0.004,110690.0,110680.0,1.23939871]
[1757034793508,0.004,110690.0,110680.0,1.00653]
[1757034793816,0.004,110690.0,110680.0,1.23939871]
[1757034798307,0.004,110690.0,110680.0,1.32973861]
[1757034798618,0.0002,110700.0,110680.0,1.32973861]
[1757034798619,0.0002,110700.0,110690.0,0.03601]
[1757034798917,0.0002,110710.0,110700.0,0.03601]
[1757034799120,2.58412871,110720.0,110710.0,0.03601]
[1757034799320,2.58392871,110720.0,110710.0,0.03601]
[1757034799617,2.83392871,110720.0,110710.0,0.03601]
[1757034800019,2.84277635,110720.0,110710.0,0.03601]
[1757034800324,2.01865635,110720.0,110710.0,0.03601]
[1757034801017,1.78578764,110720.0,110710.0,0.03601]
[1757034801205,2.02265635,110720.0,110710.0,0.03701]
[1757034807021,2.38345635,110720.0,110710.0,0.03701]
[1757034807818,2.13345635,110720.0,110710.0,0.001]
[1757034808021,2.38845635,110720.0,110710.0,0.001]
[1757034808422,2.15558764,110720.0,110710.0,0.001]
[1757034808623,2.38845635,110720.0,110710.0,0.001]
[1757034810423,2.15558764,110720.0,110710.0,0.001]
[1757034810720,2.38845635,110720.0,110710.0,0.001]
[1757034813823,2.62132506,110720.0,110710.0,0.001]
[1757034814023,2.38845635,110720.0,110710.0,0.001]
[1757034814833,0.003,110710.0,110700.0,0.0002]
[1757034815037,1.68027742,110710.0,110700.0,0.0001]
[1757034815842,1.68327742,110710.0,110700.0,0.0001]
[1757034816049,1.45040871,110710.0,110700.0,0.0001]
[1757034816544,1.68327742,110710.0,110700.0,0.0001]
[1757034816849,1.68327742,110710.0,110690.0,0.0001]
[1757034816850,0.02484,110700.0,110690.0,0.0001]
[1757034817050,2.35137742,110700.0,110680.0,0.01333]
[1757034817251,0.61560871,110690.0,110680.0,0.14323]
[1757034818343,0.61560871,110690.0,110680.0,0.1663]
[1757034819841,0.61860871,110690.0,110680.0,0.1663]
[1757034820943,0.38574,110690.0,110680.0,0.1663]
[1757034821148,0.61860871,110690.0,110680.0,0.1663]
[1757034821355,0.38574,110690.0,110680.0,0.1663]
[1757034821647,0.61860871,110690.0,110680.0,0.1663]
[1757034822241,0.61860871,110690.0,110680.0,0.4163]
[1757034822669,0.25780871,110690.0,110680.0,0.4163]
[1757034823548,0.38574,110690.0,110680.0,0.4163]
[1757034823743,0.61860871,110690.0,110680.0,0.4163]
[1757034828354,0.61860871,110690.0,110680.0,0.3563]
[1757034833560,0.85150604,110690.0,110680.0,0.3563]
[1757034835058,0.61862302,110690.0,110680.0,0.3563]
[1757034835253,0.85150604,110690.0,110680.0,0.3563]
[1757034835454,0.85150604,110690.0,110680.0,0.3564]
[1757034837357,0.85450604,110690.0,110680.0,0.3201]
[1757034837659,1.10450604,110690.0,110680.0,0.3201]
[1757034838055,1.10450604,110690.0,110680.0,0.0601]
[1757034838249,1.33738906,110690.0,110680.0,0.0001]
[1757034838760,1.10450604,110690.0,110680.0,0.0001]
[1757034840255,1.10450604,110690.0,110680.0,0.02208]
[1757034840463,1.93318604,110690.0,110680.0,0.02208]
[1757034840664,1.93318604,110690.0,110680.0,0.0001]
[1757034841366,1.68318604,110690.0,110680.0,0.0001]
[1757034841759,1.68318604,110690.0,110680.0,0.02208]
[1757034842256,0.85450604,110690.0,110680.0,0.02208]
[1757034842462,1.44730302,110690.0,110680.0,0.03595]
[1757034843159,1.68018604,110690.0,110680.0,0.03595]
[1757034843667,0.61862302,110690.0,110680.0,0.03595]
[1757034843963,2.94730302,110690.0,110680.0,0.03595]
[1757034844162,2.11862302,110690.0,110680.0,0.03595]
[1757034844359,0.61862302,110690.0,110680.0,0.28595]
[1757034844863,0.25782302,110690.0,110680.0,0.28595]
[1757034845367,0.61862302,110690.0,110680.0,0.28595]
[1757034846960,0.25782302,110690.0,110680.0,0.28595]
[1757034847160,0.61862302,110690.0,110680.0,0.28595]
[1757034847869,0.85150604,110690.0,110680.0,0.0001]
[1757034848067,0.85440604,110690.0,110680.0,0.0001]
[1757034850486,1.33728906,110690.0,110680.0,0.0001]
[1757034850659,1.10440604,110690.0,110680.0,0.0001]
[1757034852071,1.33728906,110690.0,110680.0,0.0001]
[1757034852267,0.02698,110680.0,110670.0,0.0001]
[1757034852466,1.91498906,110680.0,110670.0,0.09]
[1757034853370,1.91698906,110680.0,110670.0,0.09]
[1757034854172,1.91498906,110680.0,110670.0,0.091]
[1757034854369,1.91798906,110680.0,110670.0,0.091]
[1757034854670,1.91798906,110680.0,110670.0,0.09]
[1757034854973,1.91998906,110680.0,110670.0,0.09]
[1757034856167,1.92098906,110680.0,110670.0,0.09]
[1757034857273,0.38888,110680.0,110670.0,0.57472]
[1757034857472,0.85464604,110680.0,110670.0,0.57472]
[1757034860177,0.85364604,110680.0,110670.0,0.57472]
[1757034860877,0.85164604,110680.0,110670.0,0.57472]
[1757034862974,0.003,110680.0,110670.0,1.16840302]
[1757034863181,0.003,110680.0,110670.0,1.99688302]
[1757034863378,0.003,110680.0,110670.0,2.08722372]
[1757034863579,0.003,110680.0,110670.0,1.99688302]
[1757034864068,0.23298302,110690.0,110680.0,0.01274]
[1757034864272,0.25496302,110690.0,110680.0,0.04516]
[1757034865573,0.84864604,110690.0,110680.0,0.04516]
[1757034866082,1.67708604,110690.0,110680.0,0.04516]
[1757034866381,1.68008604,110690.0,110680.0,0.01]
[1757034867085,1.68498604,110690.0,110680.0,0.01]
[1757034872985,1.68008604,110690.0,110680.0,0.04516]
[1757034873281,1.68008604,110690.0,110680.0,0.04526]
[1757034874075,1.68008604,110690.0,110680.0,0.06432]
[1757034874885,3.18008604,110690.0,110680.0,0.06432]
[1757034876786,3.18498604,110690.0,110680.0,0.02916]
[1757034886893,3.18498604,110690.0,110680.0,0.05158]
[1757034887100,3.18008604,110690.0,110680.0,0.04581]
[1757034887285,2.35164604,110690.0,110680.0,0.04581]
[1757034887487,3.17980604,110690.0,110680.0,0.04581]
[1757034887689,2.35164604,110690.0,110680.0,0.04581]
[1757034887899,3.17980604,110690.0,110680.0,0.04581]
[1757034888094,2.71404,110690.0,110680.0,0.04581]
[1757034888296,3.17980604,110690.0,110680.0,0.04581]
[1757034889593,3.18470604,110690.0,110680.0,0.0101]
[1757034889893,0.02429,110680.0,110670.0,0.0001]
[1757034890083,0.71842906,110680.0,110670.0,0.26]
[1757034890289,1.44002906,110680.0,110670.0,0.27906]
[1757034891195,1.44002906,110680.0,110670.0,0.28006]
[1757034891395,1.44202906,110680.0,110670.0,0.28006]
[1757034892190,1.44302906,110680.0,110670.0,0.27906]
[1757034892895,1.44502906,110680.0,110670.0,0.27906]
[1757034893099,1.44202906,110680.0,110670.0,0.27906]
[1757034893393,1.7220101,110680.0,110660.0,0.0001]
[1757034893698,1.89536906,110670.0,110650.0,0.0001]
[1757034893993,0.82656604,110660.0,110650.0,0.01329]
[1757034894398,0.82656604,110660.0,110650.0,0.03433]
[1757034895498,0.59382377,110660.0,110650.0,0.03433]
[1757034896299,0.66491732,110660.0,110650.0,0.03433]
[1757034898296,0.67696411,110660.0,110650.0,0.03433]
[1757034900503,1.51172411,110660.0,110650.0,0.03433]
[1757034902009,1.51160411,110660.0,110650.0,0.03433]
[1757034903304,0.67696411,110660.0,110650.0,0.03433]
[1757034903506,1.51132411,110660.0,110650.0,0.03433]
[1757034907509,1.51132411,110660.0,110650.0,0.01329]
[1757034907702,1.51132411,110660.0,110650.0,0.03433]
[1757034908314,1.51132411,110660.0,110640.0,0.01339]
[1757034908508,0.59382377,110650.0,110640.0,0.03443]
[1757034910614,0.59382377,110650.0,110640.0,0.03543]
[1757034911913,0.82884754,110650.0,110640.0,0.0011]
[1757034913804,1.66160754,110650.0,110640.0,0.0011]
[1757034919411,1.68806526,110650.0,110640.0,0.0011]
[1757034919610,1.66160754,110650.0,110640.0,0.0011]
[1757034921316,1.68806647,110650.0,110640.0,0.0011]
[1757034922514,1.22089893,110650.0,110640.0,0.03574]
[1757034922714,0.59582377,110650.0,110640.0,0.28574]
[1757034926724,0.002,110650.0,110640.0,0.28574]
[1757034926926,0.002,110650.0,110640.0,1.23956377]
[1757034927618,0.002,110650.0,110640.0,1.00654]
[1757034928418,0.002,110650.0,110640.0,1.23956377]
[1757034930928,0.002,110650.0,110640.0,1.32436377]
[1757034932134,0.002,110650.0,110640.0,1.41472827]
[1757034936239,0.002,110650.0,110640.0,1.32992827]
[1757034936543,0.0002,110660.0,110650.0,0.1249999]
[1757034936841,0.60637391,110670.0,110660.0,0.03464]
[1757034937037,0.60617391,110670.0,110660.0,0.03474]
[1757034938233,0.37515014,110670.0,110660.0,0.03474]
[1757034938433,0.60817391,110670.0,110660.0,0.03474]
[1757034938840,0.61017391,110670.0,110660.0,0.03474]
[1757034939747,0.60817391,110670.0,110660.0,0.03474]
[1757034943441,1.09119768,110670.0,110660.0,0.0001]
[1757034944042,1.09119768,110670.0,110650.0,0.0001]
[1757034944245,1.09119768,110670.0,110640.0,0.03474]
[1757034944246,0.0032,110650.0,110640.0,0.03474]
[1757034944445,0.59702377,110650.0,110640.0,0.41464]
[1757034945342,0.59702377,110650.0,110640.0,0.03664]
[1757034946451,0.59802377,110650.0,110640.0,0.03664]
[1757034946948,0.59802377,110650.0,110640.0,0.03564]
[1757034947345,0.84802377,110650.0,110640.0,0.001]
[1757034947848,1.08104754,110650.0,110640.0,0.001]
[1757034949646,1.08104754,110650.0,110630.0,0.0001]
[1757034949950,1.65840754,110640.0,110630.0,0.04]
[1757034951053,1.65840754,110640.0,110630.0,0.042]
[1757034951548,0.3624,110640.0,110630.0,0.042]
[1757034951754,1.57256754,110640.0,110630.0,0.07784]
[1757034952653,0.82844754,110640.0,110630.0,0.07784]
[1757034952855,1.65828754,110640.0,110630.0,0.07784]
[1757034954657,1.65828754,110640.0,110630.0,0.31784]
[1757034956353,0.59542377,110640.0,110630.0,0.31784]
[1757034956556,1.42482377,110640.0,110630.0,0.56784]
[1757034957657,1.65796586,110640.0,110630.0,0.56784]
[1757034958655,0.82856586,110640.0,110630.0,0.56784]
[1757034961251,0.82856586,110640.0,110630.0,0.31784]
[1757034970467,1.31164879,110640.0,110630.0,0.282]
[1757034970669,1.31164879,110640.0,110630.0,0.2821]
[1757034973160,1.31164879,110640.0,110630.0,0.0021]
[1757034973374,1.33804998,110640.0,110630.0,0.0011]
[1757034973675,1.33804998,110640.0,110620.0,0.0001]
[1757034973860,1.65624586,110630.0,110620.0,0.06]
[1757034974459,1.68265936,110630.0,110620.0,0.06]
[1757034974665,1.68265912,110630.0,110620.0,0.06]
[1757034974872,1.68265912,110630.0,110620.0,0.064]
[1757034975770,1.68265912,110630.0,110620.0,0.063]
[1757034975973,1.68265912,110630.0,110620.0,0.064]
[1757034976572,1.68265912,110630.0,110620.0,0.061]
[1757034976766,1.68265912,110630.0,110620.0,0.063]
[1757034978167,1.91574205,110630.0,110620.0,0.003]
[1757034978367,1.91574205,110630.0,110620.0,0.001]
[1757034978568,1.91774205,110630.0,110620.0,0.001]
[1757034978972,1.91774205,110630.0,110610.0,0.03643]
[1757034979176,1.06004879,110620.0,110610.0,0.30633]
[1757034979962,0.89826599,110620.0,110610.0,0.30633]
[1757034980773,0.89926599,110620.0,110610.0,0.30633]
[1757034981670,0.90026599,110620.0,110610.0,0.30633]
[1757034982465,1.72958599,110620.0,110610.0,0.30633]
[1757034982666,0.90026599,110620.0,110610.0,0.30633]
[1757034982869,1.73847882,110620.0,110610.0,0.55633]
[1757034983177,0.90915882,110620.0,110610.0,0.55633]
[1757034984378,0.83785869,110620.0,110610.0,0.55633]
[1757035001791,0.83785869,110620.0,110610.0,0.36633]
[1757035001995,0.83785869,110620.0,110610.0,0.36643]
[1757035002891,0.83785869,110620.0,110610.0,0.11643]
[1757035003999,0.59588293,110620.0,110610.0,0.13643]
[1757035004198,0.83786885,110620.0,110610.0,0.13643]
[1757035004796,1.32095178,110620.0,110610.0,0.11329]
[1757035005002,1.32095178,110620.0,110610.0,0.0001]
[1757035006093,1.34740042,110620.0,110610.0,0.0001]
[1757035007894,1.42120954,110620.0,110610.0,0.0001]
[1757035014203,1.42120954,110620.0,110600.0,0.0001]
[1757035014400,1.88928879,110610.0,110590.0,0.0001]
[1757035014602,1.06004879,110600.0,110590.0,0.26]
[1757035016796,1.06004879,110600.0,110590.0,0.28235]
[1757035017130,1.65824586,110600.0,110590.0,0.29595]
[1757035017904,1.65924586,110600.0,110590.0,0.29595]
[1757035019413,1.42635682,110600.0,110590.0,0.29595]
[1757035022711,1.42635682,110600.0,110590.0,0.26]
[1757035022910,1.90963364,110600.0,110590.0,0.26]
[1757035023110,1.90963364,110600.0,110580.0,0.0001]
[1757035023310,0.82735364,110590.0,110580.0,0.36]
[1757035025315,0.82835364,110590.0,110580.0,0.36]
[1757035026616,1.07835364,110590.0,110570.0,0.0137]
[1757035026819,1.65667364,110580.0,110570.0,0.3236]
[1757035027120,1.65667364,110580.0,110570.0,0.31]
[1757035028113,0.82735364,110580.0,110570.0,0.312]
[1757035028312,1.65667364,110580.0,110570.0,0.34795]
[1757035030513,1.65671364,110580.0,110570.0,0.34795]
[1757035030709,0.3608,110580.0,110570.0,0.59795]
[1757035030908,0.0001,110590.0,110580.0,0.03595]
[1757035031117,0.3608,110600.0,110590.0,0.03595]
[1757035031118,1.19022,110600.0,110590.0,0.03595]
[1757035031319,1.55092,110600.0,110590.0,0.03595]
[1757035031620,1.55096,110600.0,110590.0,0.03595]
[1757035032020,0.7216,110600.0,110590.0,0.03595]
[1757035032222,1.78523682,110600.0,110590.0,0.03595]
[1757035032423,0.95587682,110600.0,110590.0,0.03595]
[1757035032615,1.78523682,110600.0,110590.0,0.03595]
[1757035032815,1.78523682,110600.0,110590.0,0.03605]
[1757035033021,0.95587682,110600.0,110590.0,0.03605]
[1757035033219,1.78523682,110600.0,110590.0,0.05605]
[1757035033617,1.78523682,110600.0,110590.0,0.03605]
[1757035033808,0.95587682,110600.0,110590.0,0.03605]
[1757035034119,1.78523682,110600.0,110590.0,0.05605]
[1757035034320,1.78523682,110600.0,110590.0,0.03605]
[1757035034620,1.78723682,110600.0,110590.0,0.03605]
[1757035036018,1.78719682,110600.0,110590.0,0.03605]
[1757035037313,0.95787682,110600.0,110590.0,0.35605]
[1757035037520,0.95787682,110600.0,110590.0,0.60605]
[1757035037714,0.7246,110600.0,110590.0,0.60605]
[1757035039124,0.95787682,110600.0,110590.0,0.60605]
[1757035040020,0.23627682,110600.0,110590.0,0.60605]
[1757035043324,0.003,110600.0,110590.0,0.60605]
[1757035044522,0.003,110600.0,110590.0,2.11978472]
[1757035044723,0.0002,110610.0,110600.0,0.1269997]
[1757035044926,1.42331682,110630.0,110610.0,0.1269915]
[1757035044927,0.0002,110620.0,110610.0,0.1269915]
[1757035045231,0.59427682,110630.0,110620.0,0.03659]
[1757035045524,0.59407682,110630.0,110620.0,0.36669]
[1757035045922,0.3608,110630.0,110620.0,0.36669]
[1757035046416,0.3608,110630.0,110620.0,0.39669]
[1757035046927,0.3608,110630.0,110620.0,0.87996682]
[1757035047426,0.3608,110630.0,110620.0,0.64669]
[1757035047627,0.3608,110630.0,110620.0,0.64769]
[1757035049033,0.3608,110630.0,110620.0,0.88096682]
[1757035049223,0.3608,110630.0,110620.0,0.97136022]
[1757035050129,0.23827682,110640.0,110630.0,0.03659]
[1757035050329,0.23807682,110640.0,110630.0,0.35669]
[1757035050626,0.23327682,110640.0,110630.0,1.18581]
[1757035050831,0.59887682,110640.0,110630.0,0.35669]
[1757035051231,0.60087682,110640.0,110630.0,0.35669]
[1757035051437,0.60187682,110640.0,110630.0,0.35669]
[1757035054032,0.60187682,110640.0,110630.0,0.41669]
[1757035054247,0.83515364,110640.0,110630.0,0.03669]
[1757035054432,0.83515364,110640.0,110630.0,0.35669]
[1757035054631,0.83515364,110640.0,110630.0,0.03669]
[1757035054837,0.83515364,110640.0,110630.0,0.16669]
[1757035056935,0.3686,110640.0,110630.0,0.16669]
[1757035057136,0.83515364,110640.0,110630.0,0.16669]
[1757035058439,0.3686,110640.0,110630.0,0.16669]
[1757035058641,0.83515364,110640.0,110630.0,0.16669]
[1757035059647,0.60187682,110640.0,110630.0,0.16669]
[1757035059831,0.60187682,110640.0,110630.0,0.38669]
[1757035060030,0.3638,110640.0,110630.0,0.36669]
[1757035060426,0.60187682,110640.0,110630.0,0.36669]
[1757035060631,0.60187682,110640.0,110630.0,0.37669]
[1757035065143,0.83515364,110640.0,110630.0,0.37669]
[1757035065347,0.83515364,110640.0,110630.0,0.04669]
[1757035066951,1.08515364,110640.0,110630.0,0.04669]
[1757035067251,1.08515364,110640.0,110630.0,0.0101]
[1757035068349,1.08515364,110640.0,110630.0,0.04591]
[1757035068548,0.85187682,110640.0,110630.0,0.04591]
[1757035069353,0.87826522,110640.0,110630.0,0.04591]
[1757035069752,0.60187682,110640.0,110630.0,0.04591]
[1757035070354,0.3686,110640.0,110630.0,0.04591]
[1757035070549,0.3638,110640.0,110630.0,0.05591]
[1757035070754,0.60187682,110640.0,110630.0,0.05591]
[1757035072156,0.60187682,110640.0,110630.0,0.38591]
[1757035072348,0.62829679,110640.0,110630.0,0.38591]
[1757035072856,0.60187682,110640.0,110630.0,0.38591]
[1757035073158,0.62829686,110640.0,110630.0,0.38591]
[1757035073547,0.26749686,110640.0,110630.0,0.38591]
[1757035073752,0.26269686,110640.0,110630.0,0.38591]
[1757035074461,0.62349686,110640.0,110630.0,0.38591]
[1757035074861,0.26269686,110640.0,110630.0,0.38591]
[1757035075067,0.62829686,110640.0,110630.0,0.38591]
[1757035075660,0.62829686,110640.0,110630.0,0.17591]
[1757035075860,0.62829686,110640.0,110630.0,0.39591]
[1757035078769,1.11157368,110640.0,110630.0,0.37591]
[1757035079472,1.11125564,110640.0,110630.0,0.37591]
[1757035080264,1.11125564,110640.0,110630.0,0.35408]
[1757035080872,1.11125564,110640.0,110630.0,0.37591]
[1757035081273,0.86125564,110640.0,110630.0,0.37591]
[1757035082469,0.86125564,110640.0,110630.0,0.15591]
[1757035082663,0.86125564,110640.0,110630.0,0.40591]
[1757035084969,0.85645564,110640.0,110630.0,0.40591]
[1757035085169,0.86125564,110640.0,110630.0,0.40591]
[1757035086872,0.86125564,110640.0,110630.0,0.04591]
[1757035093175,0.3686,110640.0,110630.0,0.04591]
[1757035093381,0.3638,110640.0,110630.0,0.04591]
[1757035093582,0.8348356,110640.0,110630.0,0.04591]
[1757035097386,0.8348356,110640.0,110630.0,0.39591]
[1757035099483,0.3686,110640.0,110630.0,0.39591]
[1757035099695,0.8300356,110640.0,110630.0,0.39591]
[1757035100188,0.5969178,110640.0,110630.0,0.6290278]
[1757035100783,0.2361178,110640.0,110630.0,0.6290278]
[1757035102693,0.2409178,110640.0,110630.0,0.6290278]
[1757035102885,0.2409178,110640.0,110630.0,0.39591]
[1757035103085,0.2409178,110640.0,110630.0,0.6290278]
[1757035105290,0.0078,110640.0,110630.0,0.6290278]
[1757035105490,0.2409178,110640.0,110630.0,0.6290278]
[1757035106897,0.2409178,110640.0,110630.0,0.39591]
[1757035107194,0.4740356,110640.0,110630.0,1.4575078]
[1757035108092,0.4740356,110640.0,110630.0,1.22439]
[1757035108493,0.0078,110640.0,110630.0,0.39591]
[1757035108685,0.8348356,110640.0,110630.0,1.22439]
[1757035109087,0.8348356,110640.0,110630.0,0.39591]
[1757035118600,0.3686,110640.0,110630.0,0.39591]
[1757035118800,0.8348356,110640.0,110630.0,0.39591]
[1757035119500,0.2361178,110640.0,110630.0,0.6290278]
[1757035121098,0.2409178,110640.0,110630.0,0.6290278]
[1757035122501,0.003,110640.0,110630.0,0.6290278]
[1757035122697,0.2361178,110640.0,110630.0,0.6290278]
[1757035123796,0.003,110640.0,110630.0,0.7138278]
[1757035124902,0.2361178,110640.0,110630.0,0.7138278]
[1757035125100,0.003,110640.0,110630.0,0.7138278]
[1757035125300,0.003,110640.0,110630.0,1.6481308]
[1757035125803,0.0002,110650.0,110630.0,1.6481308]
[1757035126108,0.0002,110650.0,110640.0,1.3291156]
[1757035126109,0.0001,110650.0,110640.0,1.3291156]
[1757035126304,0.6037178,110660.0,110650.0,0.03456]
[1757035126601,0.61274353,110660.0,110650.0,0.6377778]
[1757035126803,0.61274353,110660.0,110650.0,0.6077778]
[1757035128202,0.60414353,110660.0,110650.0,0.6077778]
[1757035128504,0.61374353,110660.0,110650.0,0.6077778]
[1757035131405,0.60414353,110660.0,110650.0,0.6077778]
[1757035132305,0.37102573,110660.0,110650.0,0.6077778]
[1757035132805,0.001,110660.0,110650.0,1.1812645]
[1757035132999,0.001,110660.0,110650.0,1.5420645]
[1757035133396,0.001,110660.0,110650.0,2.3702245]
[1757035134197,0.0002,110670.0,110660.0,0.03456]
[1757035134398,0.61266815,110680.0,110670.0,0.03456]
[1757035134598,0.61246815,110680.0,110670.0,1.09282]
[1757035135611,0.61446815,110680.0,110670.0,1.09282]
[1757035136004,0.3724,110680.0,110670.0,1.3259378]
[1757035136209,0.002,110680.0,110670.0,1.3259378]
[1757035136505,0.002,110680.0,110670.0,1.39946076]
[1757035136700,0.002,110680.0,110670.0,1.73981336]
[1757035136902,0.002,110680.0,110670.0,2.33373116]
[1757035137201,0.004,110680.0,110670.0,2.33373116]
[1757035137399,0.003,110680.0,110670.0,1.50557116]
[1757035137600,0.003,110680.0,110670.0,2.33365116]
[1757035137910,0.001,110680.0,110670.0,2.41845116]
[1757035138312,0.001,110680.0,110670.0,2.42730457]
[1757035138614,0.0002,110690.0,110680.0,0.03456]
[1757035138805,0.6037178,110700.0,110690.0,0.03456]
[1757035139001,0.6035178,110700.0,110690.0,1.4158178]
[1757035139812,0.6035178,110700.0,110690.0,1.1827]
[1757035140012,0.3608,110700.0,110690.0,1.1827]
[1757035140213,0.5939178,110700.0,110690.0,1.4158178]
[1757035141412,0.3628,110700.0,110690.0,1.41547786]
[1757035141716,0.002,110700.0,110690.0,1.41547786]
[1757035142907,0.002,110700.0,110690.0,1.75581406]
[1757035143106,0.004,110700.0,110690.0,1.75581406]
[1757035143810,0.284,110710.0,110690.0,2.11661406]
[1757035144011,0.37346,110750.0,110730.0,0.1246635]
[1757035144214,0.39655,110750.0,110740.0,0.75599786]
[1757035144514,0.39655,110750.0,110740.0,0.88322]
[1757035144912,0.03575,110750.0,110740.0,0.96340301]
[1757035145514,0.02309,110750.0,110740.0,0.96340301]
[1757035145815,0.02309,110750.0,110740.0,1.52254087]
[1757035146218,2.39665,110770.0,110760.0,0.02174]
[1757035146407,2.39655,110770.0,110760.0,0.84958]
[1757035146714,0.89655,110770.0,110760.0,0.84958]
[1757035147110,0.89655,110770.0,110760.0,0.8495]
[1757035147316,0.89655,110770.0,110760.0,1.1795]
[1757035147613,0.90155,110770.0,110760.0,1.1795]
[1757035148219,0.90155,110770.0,110760.0,0.35174]
[1757035148413,1.13932786,110770.0,110760.0,0.84946]
[1757035148609,1.13932786,110770.0,110760.0,0.84938]
[1757035148815,1.13932786,110770.0,110760.0,0.02174]
[1757035149119,1.13932786,110770.0,110760.0,0.40174]
[1757035149315,1.13932786,110770.0,110760.0,0.84938]
[1757035149512,1.13932786,110770.0,110760.0,1.17938]
[1757035150721,0.90655,110770.0,110760.0,1.17938]
[1757035151122,1.13932786,110770.0,110760.0,0.8793]
[1757035151519,0.51,110770.0,110760.0,2.41701846]
[1757035151714,0.44766473,110770.0,110760.0,2.41701846]
[1757035151908,0.44066473,110770.0,110760.0,2.41693846]
[1757035152612,0.43566473,110770.0,110760.0,2.41693846]
[1757035152820,0.43666473,110770.0,110760.0,2.41693846]
[1757035153222,0.42266473,110770.0,110760.0,2.41689846]
[1757035153428,0.41166473,110770.0,110760.0,2.41681846]
[1757035154130,0.41066473,110770.0,110760.0,1.58945846]
[1757035154326,0.41166473,110770.0,110760.0,2.41677846]
[1757035154518,0.41066473,110770.0,110760.0,2.41677846]
[1757035154922,0.41166473,110770.0,110760.0,2.41677846]
[1757035155428,0.41166473,110770.0,110760.0,1.58945846]
[1757035155726,0.41166473,110770.0,110760.0,2.41673846]
[1757035155934,0.40466473,110770.0,110760.0,2.41673846]
[1757035156225,0.40086473,110770.0,110760.0,2.41673846]
[1757035158333,0.40076473,110770.0,110760.0,2.63701968]
[1757035158631,0.0001,110790.0,110780.0,0.0902628]
[1757035158932,0.03561,110810.0,110790.0,0.0902546]
[1757035159234,0.03551,110810.0,110800.0,1.42073786]
[1757035159428,0.03551,110810.0,110800.0,1.77073786]
[1757035159628,0.04440516,110810.0,110800.0,0.94357786]
[1757035159932,0.04440516,110810.0,110800.0,0.92357786]
[1757035160122,0.04440516,110810.0,110800.0,1.50792]
[1757035160529,0.04440516,110810.0,110800.0,1.5801799]
[1757035160730,0.03551,110810.0,110800.0,1.5801799]
[1757035160931,0.04151,110810.0,110800.0,1.5801799]
[1757035161435,0.52428786,110810.0,110800.0,1.13708]
[1757035161633,0.88508786,110810.0,110800.0,1.13708]
[1757035162229,0.88908786,110810.0,110800.0,1.13708]
[1757035162831,0.03581,110780.0,110770.0,0.68384796]
[1757035163029,0.03581,110780.0,110770.0,1.89084796]
[1757035163538,0.01296,110780.0,110770.0,1.89084796]
[1757035163728,0.01296,110780.0,110770.0,1.06384796]
[1757035164037,0.03581,110780.0,110770.0,1.56776]
[1757035164238,0.03781,110780.0,110770.0,1.6580309]
[1757035164438,0.01696,110780.0,110770.0,1.89080876]
[1757035168043,0.004,110780.0,110770.0,1.6580309]
[1757035168243,0.004,110780.0,110770.0,2.14080876]
[1757035169942,0.01696,110780.0,110770.0,2.14080876]
[1757035170146,0.03981,110780.0,110770.0,1.80045786]
[1757035173543,0.06631437,110780.0,110770.0,1.80045786]
[1757035174040,0.04346437,110780.0,110770.0,1.80045786]
[1757035174346,0.03050437,110780.0,110770.0,1.6579509]